fUSD/lending_fUSD_20240426
["ID","MTS","AMOUNT","RATE_DAILY","PERIOD"]
[323641127,1714146682299,-951.02,0.00012639,2]
[323641128,1714146682309,-882.88,0.00012639,2]
[323641129,1714146682319,-513.26,0.00012639,2]
[323641130,1714146682330,-500.0,0.00012639,2]
[323641131,1714146682339,-500.0,0.00012639,2]
[323641132,1714146682349,-1725.66,0.00012639,2]
[323641133,1714146682360,-500.0,0.00012639,2]
[323641134,1714146682370,-500.0,0.00012639,2]
[323641135,1714146682381,-500.0,0.00012639,2]
[323641136,1714146682391,-500.0,0.00012639,2]
[323641137,1714146682401,-500.0,0.00012639,2]
[323641138,1714146682410,-500.0,0.00012639,2]
[323641139,1714146682419,-1527.71,0.00012639,2]
[323641140,1714146682430,-500.0,0.00012639,2]
[323641141,1714146682448,-500.0,0.00012639,2]
[323641142,1714146682461,-500.0,0.00012639,2]
[323641143,1714146682472,-500.0,0.00012639,2]
[323641144,1714146682482,-682.76,0.00012639,2]
[323641145,1714146682495,-522.14,0.00012639,2]
[323641146,1714146682505,-380.28,0.00012639,2]
[323641147,1714146682516,-1626.54,0.00012639,2]
[323641148,1714146682527,-511.7,0.00012639,2]
[323641149,1714146682536,-500.0,0.00012639,2]
[323641150,1714146682546,-500.0,0.00012639,2]
[323641151,1714146682557,-500.0,0.00012639,2]
[323641152,1714146682567,-500.0,0.00012639,2]
[323641153,1714146682578,-500.0,0.00012639,2]
[323641154,1714146682587,-500.0,0.00012639,2]
[323641155,1714146682597,-500.0,0.00012639,2]
[323641156,1714146682607,-500.0,0.00012639,2]
[323641157,1714146682618,-174.34999729,0.00012639,2]
[323641158,1714146682629,-500.0,0.00012639,2]
[323641159,1714146682640,-500.0,0.00012639,2]
[323641160,1714146682650,-238.26499089,0.00012639,2]
[323641161,1714146682660,-500.0,0.00012639,2]
[323641162,1714146682670,-387.06,0.00012639,2]
[323641163,1714146682680,-1328.17,0.00012639,2]
[323641164,1714146682690,-500.0,0.00012639,2]
[323641165,1714146682700,-500.0,0.00012639,2]
[323641166,1714146682710,-500.0,0.00012639,2]
[323641167,1714146682720,-551.92,0.00012639,2]
[323641168,1714146682729,-500.0,0.00012639,2]
[323641169,1714146682739,-500.0,0.00012639,2]
[323641170,1714146682748,-500.0,0.00012639,2]
[323641171,1714146682758,-581.23,0.00012639,2]
[323641172,1714146682768,-500.0,0.00012639,2]
[323641173,1714146682779,-2126.22,0.00012639,2]
[323641174,1714146682789,-1925.01,0.00012639,2]
[323641175,1714146682799,-500.0,0.00012639,2]
[323641176,1714146682809,-544.69,0.00012639,2]
[323641177,1714146682819,-500.0,0.00012639,2]
[323641178,1714146682830,-500.0,0.00012639,2]
[323641179,1714146682839,-500.0,0.00012639,2]
[323641180,1714146682848,-1631.66,0.00012639,2]
[323641181,1714146682858,-500.0,0.00012639,2]
[323641182,1714146682868,-500.0,0.00012639,2]
[323641183,1714146682877,-500.0,0.00012639,2]
[323641184,1714146682887,-1881.98,0.00012639,2]
[323641185,1714146682897,-500.0,0.00012639,2]
[323641186,1714146682906,-500.0,0.00012639,2]
[323641187,1714146682916,-1848.32,0.00012639,2]
[323641188,1714146682926,-597.71,0.00012639,2]
[323641189,1714146682936,-2029.94,0.00012639,2]
[323641190,1714146682946,-500.0,0.00012639,2]
[323641191,1714146682956,-500.0,0.00012639,2]
[323641192,1714146682969,-661.25,0.00012639,2]
[323641193,1714146682978,-500.0,0.00012639,2]
[323641194,1714146682988,-1370.68,0.00012639,2]
[323641195,1714146682998,-1912.0,0.00012639,2]
[323641196,1714146683008,-500.0,0.00012639,2]
[323641197,1714146683017,-919.44,0.00012639,2]
[323641198,1714146683027,-500.0,0.00012639,2]
[323641199,1714146683035,-638.29,0.00012639,2]
[323641200,1714146683044,-1171.2,0.00012639,2]
[323641201,1714146683054,-5559.23,0.00012639,2]
[323641202,1714146683063,-500.0,0.00012639,2]
[323641203,1714146683072,-2143.51,0.00012639,2]
[323641204,1714146683082,-7686.77,0.00012639,2]
[323641205,1714146683091,-500.0,0.00012639,2]
[323641206,1714146683100,-500.0,0.00012639,2]
[323641207,1714146683109,-500.0,0.00012639,2]
[323641208,1714146683119,-500.0,0.00012639,2]
[323641209,1714146683129,-2569.43,0.00012639,2]
[323641210,1714146683138,-2739.23,0.00012639,2]
[323641211,1714146683148,-500.0,0.00012639,2]
[323641212,1714146683157,-500.0,0.00012639,2]
[323641213,1714146683167,-500.0,0.00012639,2]
[323641214,1714146683176,-1792.37,0.00012639,2]
[323641215,1714146683185,-500.0,0.00012639,2]
[323641216,1714146683195,-1653.79,0.00012639,2]
[323641217,1714146683204,-500.0,0.00012639,2]
[323641218,1714146683216,-625.93,0.00012639,2]
[323641219,1714146683225,-500.0,0.00012639,2]
[323641220,1714146683234,-500.0,0.00012639,2]
[323641221,1714146683244,-1471.8,0.00012639,2]
[323641222,1714146683254,-1070.1,0.00012639,2]
[323641223,1714146683263,-4037.45,0.00012639,2]
[323641224,1714146683273,-2650.97,0.00012639,2]
[323641225,1714146683282,-598.19,0.00012639,2]
[323641226,1714146683292,-500.0,0.00012639,2]
[323641227,1714146683301,-4448.95,0.00012639,2]
[323641228,1714146683311,-2695.07,0.00012639,2]
[323641229,1714146683320,-8545.82,0.00012639,2]
[323641230,1714146683330,-500.0,0.00012639,2]
[323641231,1714146683340,-591.25,0.00012639,2]
[323641232,1714146683350,-2042.61,0.00012639,2]
[323641233,1714146683359,-500.0,0.00012639,2]
[323641234,1714146683369,-693.98,0.00012639,2]
[323641235,1714146683379,-3854.6,0.00012639,2]
[323641236,1714146683389,-1203.03,0.00012639,2]
[323641237,1714146683398,-1971.4,0.00012639,2]
[323641238,1714146683408,-500.0,0.00012639,2]
[323641239,1714146683418,-500.0,0.00012639,2]
[323641240,1714146683428,-500.0,0.00012639,2]
[323641241,1714146683437,-500.0,0.00012639,2]
[323641242,1714146683446,-540.52,0.00012639,2]
[323641243,1714146683457,-1968.53,0.00012639,2]
[323641244,1714146683471,-500.0,0.00012639,2]
[323641245,1714146683480,-3141.48,0.00012639,2]
[323641246,1714146683489,-1494.75,0.00012639,2]
[323641247,1714146683498,-2509.36,0.00012639,2]
[323641248,1714146683508,-500.92,0.00012639,2]
[323641249,1714146683518,-13276.39,0.00012639,2]
[323641250,1714146683527,-500.0,0.00012639,2]
[323641251,1714146683537,-8273.37,0.00012639,2]
[323641252,1714146683547,-500.0,0.00012639,2]
[323641253,1714146683556,-742.66,0.00012639,2]
[323641254,1714146683566,-500.0,0.00012639,2]
[323641255,1714146683576,-436.15,0.00012639,2]
[323641256,1714146683586,-500.0,0.00012639,2]
[323641257,1714146683596,-1606.25,0.00012639,2]
[323641258,1714146683605,-1129.91,0.00012639,2]
[323641259,1714146683615,-500.0,0.00012639,2]
[323641260,1714146683624,-500.0,0.00012639,2]
[323641261,1714146683634,-500.0,0.00012639,2]
[323641262,1714146683644,-500.0,0.00012639,2]
[323641263,1714146683654,-1918.48,0.00012639,2]
[323641264,1714146683664,-500.0,0.00012639,2]
[323641265,1714146683673,-2088.24,0.00012639,2]
[323641266,1714146683683,-500.0,0.00012639,2]
[323641267,1714146683693,-500.0,0.00012639,2]
[323641268,1714146683703,-1027.75,0.00012639,2]
[323641269,1714146683716,-500.0,0.00012639,2]
[323641270,1714146683726,-500.0,0.00012639,2]
[323641271,1714146683735,-1818.45,0.00012639,2]
[323641272,1714146683745,-5084.52,0.00012639,2]
[323641273,1714146683755,-1698.98,0.00012639,2]
[323641274,1714146683765,-500.0,0.00012639,2]
[323641275,1714146683775,-500.0,0.00012639,2]
[323641276,1714146683785,-500.0,0.00012639,2]
[323641277,1714146683795,-2638.15,0.00012639,2]
[323641278,1714146683805,-500.0,0.00012639,2]
[323641279,1714146683814,-1991.01,0.00012639,2]
[323641280,1714146683825,-500.0,0.00012639,2]
[323641281,1714146683834,-4070.98,0.00012639,2]
[323641282,1714146683844,-2076.98,0.00012639,2]
[323641283,1714146683854,-500.0,0.00012639,2]
[323641284,1714146683863,-1015.78,0.00012639,2]
[323641285,1714146683873,-1017.72,0.00012639,2]
[323641286,1714146683882,-644.82,0.00012639,2]
[323641287,1714146683892,-500.0,0.00012639,2]
[323641288,1714146683901,-5841.05,0.00012639,2]
[323641289,1714146683911,-700.9,0.00012639,2]
[323641290,1714146683920,-2676.49,0.00012639,2]
[323641291,1714146683930,-743.73,0.00012639,2]
[323641292,1714146683940,-1119.16,0.00012639,2]
[323641293,1714146683950,-500.0,0.00012639,2]
[323641294,1714146683961,-3263.92,0.00012639,2]
[323641295,1714146683972,-739.69,0.00012639,2]
[323641296,1714146683981,-2402.81,0.00012639,2]
[323641297,1714146683996,-500.0,0.00012639,2]
[323641298,1714146684005,-1345.69,0.00012639,2]
[323641299,1714146684015,-14775.47,0.0001264,2]
[323641300,1714146684025,-500.0,0.0001264,2]
[323641301,1714146684035,-500.0,0.0001264,2]
[323641302,1714146684045,-558.17,0.0001264,2]
[323641303,1714146684054,-500.0,0.0001264,2]
[323641304,1714146684064,-500.0,0.0001264,2]
[323641305,1714146684074,-500.0,0.0001264,2]
[323641306,1714146684083,-454.08383244,0.0001264,2]
[323641307,1714146684093,-500.0,0.0001264,2]
[323641308,1714146684102,-504.08755243,0.0001264,2]
[323641309,1714146684112,-577.08,0.0001264,2]
[323641310,1714146684121,-500.0,0.0001264,2]
[323641311,1714146684131,-500.0,0.0001264,2]
[323641312,1714146684140,-361.01753935,0.0001264,2]
[323641313,1714146684150,-506.36830335,0.0001264,2]
[323641314,1714146684159,-500.0,0.0001264,2]
[323641315,1714146684169,-500.0,0.0001264,2]
[323641316,1714146684179,-500.0,0.0001264,2]
[323641317,1714146684188,-500.0,0.0001264,2]
[323641318,1714146684198,-500.0,0.0001264,2]
[323641319,1714146684208,-500.0,0.0001264,2]
[323641320,1714146684220,-500.0,0.0001264,2]
[323641321,1714146684229,-500.0,0.0001264,2]
[323641322,1714146684239,-500.0,0.0001264,2]
[323641323,1714146684249,-500.0,0.0001264,2]
[323641324,1714146684259,-500.0,0.0001264,2]
[323641325,1714146684268,-703.76,0.0001264,2]
[323641326,1714146684278,-723.08,0.0001264,2]
[323641327,1714146684288,-500.0,0.0001264,2]
[323641328,1714146684298,-500.0,0.0001264,2]
[323641329,1714146684307,-500.0,0.0001264,2]
[323641330,1714146684317,-500.0,0.0001264,2]
[323641331,1714146684327,-500.0,0.0001264,2]
[323641332,1714146684336,-500.0,0.0001264,2]
[323641333,1714146684345,-500.0,0.0001264,2]
[323641334,1714146684355,-500.0,0.0001264,2]
[323641335,1714146684365,-571.51,0.0001264,2]
[323641336,1714146684375,-500.0,0.0001264,2]
[323641337,1714146684385,-500.0,0.0001264,2]
[323641338,1714146684395,-506.11160711,0.0001264,2]
[323641339,1714146684404,-500.0,0.0001264,2]
[323641340,1714146684414,-500.0,0.0001264,2]
[323641341,1714146684423,-500.0,0.0001264,2]
[323641342,1714146684433,-500.0,0.0001264,2]
[323641343,1714146684443,-500.0,0.0001264,2]
[323641344,1714146684452,-500.0,0.0001264,2]
[323641345,1714146684464,-500.0,0.0001264,2]
[323641346,1714146684478,-500.0,0.0001264,2]
[323641347,1714146684487,-1700.69,0.0001264,2]
[323641348,1714146684497,-500.0,0.0001264,2]
[323641349,1714146684506,-500.0,0.0001264,2]
[323641350,1714146684517,-500.0,0.0001264,2]
[323641351,1714146684527,-500.0,0.0001264,2]
[323641352,1714146684537,-597.04,0.0001264,2]
[323641353,1714146684547,-500.0,0.0001264,2]
[323641354,1714146684556,-500.0,0.0001264,2]
[323641355,1714146684567,-500.0,0.0001264,2]
[323641356,1714146684781,-500.0,0.0001264,2]
[323641357,1714146684799,-500.0,0.0001264,2]
[323641358,1714146684809,-500.0,0.0001264,2]
[323641359,1714146684819,-500.0,0.0001264,2]
[323641360,1714146684828,-500.0,0.0001264,2]
[323641361,1714146684838,-500.0,0.0001264,2]
[323641362,1714146684847,-980.11,0.0001264,2]
[323641363,1714146684857,-500.0,0.0001264,2]
[323641364,1714146684869,-654.78,0.0001264,2]
[323641365,1714146684878,-500.0,0.0001264,2]
[323641366,1714146684888,-665.45,0.0001264,2]
[323641367,1714146684898,-500.0,0.0001264,2]
[323641368,1714146684907,-500.0,0.0001264,2]
[323641369,1714146684917,-500.0,0.0001264,2]
[323641370,1714146684926,-630.16,0.0001264,2]
[323641371,1714146684936,-500.0,0.0001264,2]
[323641372,1714146684945,-500.0,0.0001264,2]
[323641373,1714146684955,-500.0,0.0001264,2]
[323641374,1714146684965,-500.0,0.0001264,2]
[323641375,1714146684975,-500.0,0.0001264,2]
[323641376,1714146684984,-500.0,0.0001264,2]
[323641377,1714146684994,-500.0,0.0001264,2]
[323641378,1714146685004,-500.0,0.0001264,2]
[323641379,1714146685014,-500.0,0.0001264,2]
[323641380,1714146685023,-500.0,0.0001264,2]
[323641381,1714146685033,-500.0,0.0001264,2]
[323641382,1714146685042,-500.0,0.0001264,2]
[323641383,1714146685052,-500.0,0.0001264,2]
[323641384,1714146685061,-500.0,0.0001264,2]
[323641385,1714146685070,-500.0,0.0001264,2]
[323641386,1714146685080,-500.0,0.0001264,2]
[323641387,1714146685089,-507.24,0.0001264,2]
[323641388,1714146685098,-500.0,0.0001264,2]
[323641389,1714146685108,-500.0,0.0001264,2]
[323641390,1714146685122,-500.0,0.0001264,2]
[323641391,1714146685131,-500.0,0.0001264,2]
[323641392,1714146685141,-500.0,0.0001264,2]
[323641393,1714146685150,-500.0,0.0001264,2]
[323641394,1714146685160,-500.0,0.0001264,2]
[323641395,1714146685170,-500.0,0.0001264,2]
[323641396,1714146685179,-500.0,0.0001264,2]
[323641397,1714146685189,-500.0,0.0001264,2]
[323641398,1714146685200,-500.0,0.0001264,2]
[323641399,1714146685210,-500.0,0.0001264,2]
[323641400,1714146685220,-500.0,0.0001264,2]
[323641401,1714146685230,-500.0,0.0001264,2]
[323641402,1714146685239,-817.8,0.0001264,2]
[323641403,1714146685249,-500.0,0.0001264,2]
[323641404,1714146685258,-500.0,0.0001264,2]
[323641405,1714146685268,-500.0,0.0001264,2]
[323641406,1714146685277,-500.0,0.0001264,2]
[323641407,1714146685287,-530.95,0.0001264,2]
[323641408,1714146685297,-500.0,0.0001264,2]
[323641409,1714146685306,-500.0,0.0001264,2]
[323641410,1714146685316,-500.0,0.0001264,2]
[323641411,1714146685325,-500.0,0.0001264,2]
[323641412,1714146685335,-500.0,0.0001264,2]
[323641413,1714146685344,-506.28949119,0.0001264,2]
[323641414,1714146685354,-500.0,0.0001264,2]
[323641415,1714146685364,-500.0,0.0001264,2]
[323641416,1714146685374,-500.0,0.0001264,2]
[323641417,1714146685384,-500.0,0.0001264,2]
[323641418,1714146685393,-500.0,0.0001264,2]
[323641419,1714146685403,-500.0,0.0001264,2]
[323641420,1714146685413,-542.25,0.0001264,2]
[323641421,1714146685422,-500.0,0.0001264,2]
[323641422,1714146685432,-597.96,0.0001264,2]
[323641423,1714146685442,-1358.88,0.0001264,2]
[323641424,1714146685451,-619.11,0.0001264,2]
[323641425,1714146685463,-500.0,0.0001264,2]
[323641426,1714146685477,-1059.13,0.0001264,2]
[323641427,1714146685486,-500.0,0.0001264,2]
[323641428,1714146685496,-500.0,0.0001264,2]
[323641429,1714146685507,-500.0,0.0001264,2]
[323641430,1714146685516,-500.0,0.0001264,2]
[323641431,1714146685526,-500.0,0.0001264,2]
[323641432,1714146685537,-500.0,0.0001264,2]
[323641433,1714146685547,-500.0,0.0001264,2]
[323641434,1714146685559,-621.09,0.0001264,2]
[323641435,1714146685570,-781.34,0.0001264,2]
[323641436,1714146685580,-500.0,0.0001264,2]
[323641437,1714146685590,-500.0,0.0001264,2]
[323641438,1714146685600,-500.0,0.0001264,2]
[323641439,1714146685610,-603.94,0.0001264,2]
[323641440,1714146685619,-500.0,0.0001264,2]
[323641441,1714146685629,-2203.32,0.0001264,2]
[323641442,1714146685639,-741.55,0.0001264,2]
[323641443,1714146685649,-500.0,0.0001264,2]
[323641444,1714146685660,-707.05,0.0001264,2]
[323641445,1714146685670,-500.0,0.0001264,2]
[323641446,1714146685680,-500.0,0.0001264,2]
[323641447,1714146685690,-500.0,0.0001264,2]
[323641448,1714146685700,-500.0,0.0001264,2]
[323641449,1714146685710,-500.0,0.0001264,2]
[323641450,1714146685724,-1197.27,0.0001264,2]
[323641451,1714146685733,-525.11,0.0001264,2]
[323641452,1714146685744,-1151.01,0.0001264,2]
[323641453,1714146685753,-1089.37,0.0001264,2]
[323641454,1714146685763,-500.0,0.0001264,2]
[323641455,1714146685773,-500.0,0.0001264,2]
[323641456,1714146685782,-500.0,0.0001264,2]
[323641457,1714146685792,-535.73,0.0001264,2]
[323641458,1714146685801,-1314.57,0.0001264,2]
[323641459,1714146685810,-500.0,0.0001264,2]
[323641460,1714146685820,-500.0,0.0001264,2]
[323641461,1714146685830,-500.0,0.0001264,2]
[323641462,1714146685839,-1247.81,0.0001264,2]
[323641463,1714146685849,-500.0,0.0001264,2]
[323641464,1714146685859,-500.0,0.0001264,2]
[323641465,1714146685868,-731.33,0.0001264,2]
[323641466,1714146685878,-609.72,0.0001264,2]
[323641467,1714146685888,-500.0,0.0001264,2]
[323641468,1714146685897,-713.5,0.0001264,2]
[323641469,1714146685906,-577.85,0.0001264,2]
[323641470,1714146685916,-500.0,0.0001264,2]
[323641471,1714146685925,-500.0,0.0001264,2]
[323641472,1714146685934,-500.0,0.0001264,2]
[323641473,1714146685943,-500.0,0.0001264,2]
[323641474,1714146685953,-1867.18,0.0001264,2]
[323641475,1714146685964,-500.0,0.0001264,2]
[323641476,1714146685973,-500.0,0.0001264,2]
[323641477,1714146685983,-500.0,0.0001264,2]
[323641478,1714146685992,-390.5,0.0001264,2]
[323641479,1714146686002,-1355.9,0.0001264,2]
[323641480,1714146686012,-638.8,0.0001264,2]
[323641481,1714146686022,-500.0,0.0001264,2]
[323641482,1714146686032,-603.07,0.0001264,2]
[323641483,1714146686041,-500.0,0.0001264,2]
[323641484,1714146686051,-500.0,0.0001264,2]
[323641485,1714146686060,-500.0,0.0001264,2]
[323641486,1714146686070,-500.0,0.0001264,2]
[323641487,1714146686080,-500.0,0.0001264,2]
[323641488,1714146686090,-500.0,0.0001264,2]
[323641489,1714146686100,-500.0,0.0001264,2]
[323641490,1714146686110,-1301.29,0.0001264,2]
[323641491,1714146686120,-500.0,0.0001264,2]
[323641492,1714146686129,-500.0,0.0001264,2]
[323641493,1714146686139,-520.4410018,0.0001264,2]
[323641494,1714146686148,-500.0,0.0001264,2]
[323641495,1714146686158,-1375.84,0.0001264,2]
[323641496,1714146686168,-500.0,0.0001264,2]
[323641497,1714146686178,-500.0,0.0001264,2]
[323641498,1714146686188,-678.19,0.0001264,2]
[323641499,1714146686198,-500.0,0.0001264,2]
[323641500,1714146686207,-724.11,0.0001264,2]
[323641501,1714146686219,-594.9,0.0001264,2]
[323641502,1714146686229,-616.05,0.0001264,2]
[323641503,1714146686238,-500.0,0.0001264,2]
[323641504,1714146686248,-500.0,0.0001264,2]
[323641505,1714146686257,-1741.91,0.0001264,2]
[323641506,1714146686267,-500.0,0.0001264,2]
[323641507,1714146686277,-500.0,0.0001264,2]
[323641508,1714146686287,-645.35,0.0001264,2]
[323641509,1714146686298,-1642.19,0.0001264,2]
[323641510,1714146686308,-500.0,0.0001264,2]
[323641511,1714146686318,-500.0,0.0001264,2]
[323641512,1714146686327,-500.0,0.0001264,2]
[323641513,1714146686337,-500.0,0.0001264,2]
[323641514,1714146686347,-569.32649259,0.0001264,2]
[323641515,1714146686357,-877.55,0.0001264,2]
[323641516,1714146686366,-500.0,0.0001264,2]
[323641517,1714146686376,-1878.46,0.0001264,2]
[323641518,1714146686387,-500.0,0.0001264,2]
[323641519,1714146686397,-2626.11,0.0001264,2]
[323641520,1714146686406,-500.0,0.0001264,2]
[323641521,1714146686416,-500.0,0.0001264,2]
[323641522,1714146686425,-271.08,0.0001264,2]
[323641523,1714146686435,-511.56,0.0001264,2]
[323641524,1714146686446,-800.34,0.0001264,2]
[323641525,1714146686455,-591.73395464,0.0001264,2]
[323641526,1714146686472,-500.0,0.0001264,2]
[323641527,1714146686482,-500.0,0.0001264,2]
[323641528,1714146686492,-500.0,0.00012644,2]
[323641529,1714146686502,-5015.37970179,0.00012657,2]
[323641530,1714146686512,-254.0,0.0001269,2]
[323641531,1714146686521,-324.74,0.00012712,2]
[323641532,1714146686530,-500.0,0.00012745,2]
[323641533,1714146686540,-524.75,0.00012745,2]
[323641534,1714146686549,-500.0,0.00012745,2]
[323641535,1714146686561,-500.0,0.00012745,2]
[323641536,1714146686570,-500.0,0.00012745,2]
[323641537,1714146686580,-500.0,0.00012745,2]
[323641538,1714146686590,-912.86,0.00012745,2]
[323641539,1714146686600,-500.0,0.00012745,2]
[323641540,1714146686610,-614.45,0.00012745,2]
[323641541,1714146686620,-831.87,0.00012745,2]
[323641542,1714146686630,-500.0,0.00012745,2]
[323641543,1714146686640,-500.0,0.00012745,2]
[323641544,1714146686649,-500.0,0.00012745,2]
[323641545,1714146686659,-505.67613268,0.00012745,2]
[323641546,1714146686668,-500.0,0.00012745,2]
[323641547,1714146686678,-500.0,0.00012745,2]
[323641548,1714146686688,-500.0,0.00012745,2]
[323641549,1714146686698,-500.0,0.00012745,2]
[323641550,1714146686707,-500.0,0.00012745,2]
[323641551,1714146686719,-500.0,0.00012745,2]
[323641552,1714146686729,-500.0,0.00012745,2]
[323641553,1714146686738,-1074.39,0.00012745,2]
[323641554,1714146686748,-552.56116492,0.00012745,2]
[323641555,1714146686757,-500.0,0.00012745,2]
[323641556,1714146686767,-500.0,0.00012745,2]
[323641557,1714146686777,-500.0,0.00012745,2]
[323641558,1714146686787,-500.0,0.00012745,2]
[323641559,1714146686796,-500.0,0.00012745,2]
[323641560,1714146686806,-500.0,0.00012745,2]
[323641561,1714146686815,-500.0,0.00012745,2]
[323641562,1714146686825,-532.82,0.00012745,2]
[323641563,1714146686834,-500.0,0.00012745,2]
[323641564,1714146686843,-500.0,0.00012745,2]
[323641565,1714146686852,-500.0,0.00012745,2]
[323641566,1714146686862,-500.0,0.00012745,2]
[323641567,1714146686871,-773.66,0.00012745,2]
[323641568,1714146686881,-838.97,0.00012745,2]
[323641569,1714146686890,-500.0,0.00012745,2]
[323641570,1714146686900,-671.04,0.00012745,2]
[323641571,1714146686909,-500.0,0.00012745,2]
[323641572,1714146686919,-500.0,0.00012745,2]
[323641573,1714146686929,-500.0,0.00012745,2]
[323641574,1714146686938,-724.04,0.00012745,2]
[323641575,1714146686948,-500.0,0.00012745,2]
[323641576,1714146686958,-500.0,0.00012745,2]
[323641577,1714146686971,-500.0,0.00012745,2]
[323641578,1714146686981,-659.6,0.00012745,2]
[323641579,1714146686991,-500.0,0.00012745,2]
[323641580,1714146687000,-543.48,0.00012745,2]
[323641581,1714146687010,-508.88,0.00012745,2]
[323641582,1714146687018,-259.16220764,0.00012745,2]
[323641583,1714146687028,-605.67,0.00012745,2]
[323641584,1714146687038,-804.0,0.00012745,2]
[323641585,1714146687048,-500.0,0.00012745,2]
[323641586,1714146687057,-500.0,0.00012745,2]
[323641587,1714146687067,-500.0,0.00012745,2]
[323641588,1714146687077,-512.65,0.00012745,2]
[323641589,1714146687087,-500.0,0.00012745,2]
[323641590,1714146687096,-500.0,0.00012745,2]
[323641591,1714146687106,-500.0,0.00012745,2]
[323641592,1714146687116,-500.0,0.00012745,2]
[323641593,1714146687125,-733.06,0.00012745,2]
[323641594,1714146687135,-500.0,0.00012745,2]
[323641595,1714146687144,-500.0,0.00012745,2]
[323641596,1714146687154,-500.0,0.00012745,2]
[323641597,1714146687164,-500.0,0.00012745,2]
[323641598,1714146687173,-500.0,0.00012745,2]
[323641599,1714146687183,-500.0,0.00012745,2]
[323641600,1714146687193,-584.14,0.00012745,2]
[323641601,1714146687202,-500.0,0.00012745,2]
[323641602,1714146687213,-668.64,0.00012745,2]
[323641603,1714146687222,-535.33,0.00012745,2]
[323641604,1714146687232,-500.0,0.00012745,2]
[323641605,1714146687310,-500.0,0.00012745,2]
[323641606,1714146687321,-500.0,0.00012745,2]
[323641607,1714146687331,-500.75,0.00012745,2]
[323641608,1714146687341,-500.0,0.00012745,2]
[323641609,1714146687350,-500.0,0.00012745,2]
[323641610,1714146687360,-500.0,0.00012745,2]
[323641611,1714146687370,-500.0,0.00012745,2]
[323641612,1714146687380,-500.0,0.00012745,2]
[323641613,1714146687389,-500.0,0.00012745,2]
[323641614,1714146687399,-549.83,0.00012745,2]
[323641615,1714146687408,-500.0,0.00012745,2]
[323641616,1714146687418,-500.0,0.00012745,2]
[323641617,1714146687428,-500.0,0.00012745,2]
[323641618,1714146687438,-500.0,0.00012745,2]
[323641619,1714146687447,-500.0,0.00012745,2]
[323641620,1714146687457,-625.12755026,0.00012745,2]
[323641621,1714146687471,-500.0,0.00012745,2]
[323641622,1714146687481,-500.0,0.00012745,2]
[323641623,1714146687490,-500.0,0.00012745,2]
[323641624,1714146687499,-500.0,0.00012745,2]
[323641625,1714146687509,-500.0,0.00012745,2]
[323641626,1714146687519,-500.0,0.00012745,2]